Cogmind - Beta 11 *** ADVENTURER MODE // 2022.04.14 @ 21:52:22 Player: Turbografx16 Result: Self-destructed Performance ------------- Evolutions (2) 1000 Regions Visited (5) 1000 Robots Destroyed (2) 10 Value Destroyed (107) 107 Prototype IDs (3) 60 Alien Tech Used (0) 0 Bonus (559) 559 TOTAL SCORE: 2736 Bonus ------- Follower Combat Kills 259 Aligned with FarCom 300 Cogmind --------- Core Integrity 550/550 Matter 300/300 Energy 250/250 System Corruption 2% Temperature Cool (0) Movement Treading (320) Ox2 Location -8/Materials Parts ------- > --- POWER (1) -------- Ion Engine > --- PROPULSION (2) --- Improved Treads Improved Treads > --- UTILITY (6) ------ Army-in-a-Box (0/30) > --- WEAPON (2) ------- Heavy Battle Rifle Assault Cannon > --- INVENTORY (5) ---- Cryofiber Web Improved Light Armor Plating System Shield PSU Rigger Guided Plasma Cannon Peak State ------------ > --- POWER ------------ Ion Engine > --- PROPULSION ------- Improved Treads Improved Treads > --- UTILITY ---------- Army-in-a-Box > --- WEAPON ----------- Minigun Heavy Battle Rifle > --- INVENTORY -------- Cryofiber Web Machine Analyzer Improved Light Armor Plating System Shield Guided Plasma Cannon [Rating: 68] Favorites ----------- Power Ion Engine Engine Ion Engine Propulsion Light Treads Treads Light Treads Leg Aluminum Leg Utility Humpback Device Army-in-a-Box Storage Humpback Protection Improved Light Armor Plating Weapon Minigun Energy Gun EM Pulse Gun Energy Cannon Guided Plasma Cannon Ballistic Gun Minigun Ballistic Cannon Assault Cannon Build | -11 -10 -10 -10 -9 -8 ------- Run | Scr Mat Min Exi Min Mat Slots Evolved 4 | . . . . . 4 Power . | . . . . . . Propulsion . | . . . . . . Utility 4 | . . . . . 4 Weapon . | . . . . . . Parts Attached 18 | 1 . 3 8 1 5 Power . | . . . . . . Engine . | . . . . . . Core . | . . . . . . Reactor . | . . . . . . Propulsion 5 | . . 1 2 . 2 Treads 4 | . . . 2 . 2 Leg 1 | . . 1 . . . Wheel . | . . . . . . Hover . | . . . . . . Flight . | . . . . . . Utility 6 | . . 1 3 . 2 Device 3 | . . . 1 . 2 Storage 2 | . . . 2 . . Processor . | . . . . . . Hackware . | . . . . . . Protection 1 | . . 1 . . . Artifact . | . . . . . . Weapon 7 | 1 . 1 3 1 1 Energy Gun 2 | 1 . . 1 . . Energy Cannon 1 | . . . 1 . . Ballistic Gun 3 | . . 1 1 1 . Ballistic Cannon 1 | . . . . . 1 Launcher . | . . . . . . Special Weapon . | . . . . . . Impact Weapon . | . . . . . . Slashing Weapon . | . . . . . . Piercing Weapon . | . . . . . . Special Melee Weapon . | . . . . . . Unidentified Prototypes 3 | . . . 2 . 1 Parts Lost . | . . . . . . Power . | . . . . . . Propulsion . | . . . . . . Utility . | . . . . . . Weapon . | . . . . . . Highest Loss Streak . | . . . . . . To Critical Strikes . | . . . . . . Average Slot Usage (%) 82 | . 85 95 86 85 55 Engine 13 | . 14 14 14 14 9 Treads 19 | . . . 25 28 18 Leg 6 | . 28 28 2 . . Device 1 | . . . . . 7 Storage 12 | . 14 14 14 14 3 Protection 2 | . . 10 1 . . Energy Gun 9 | . 14 14 14 1 . Ballistic Gun 16 | . 14 14 14 26 14 Naked Turns . | . . . . . . Heaviest Build 212 | 13 13 18 210 212 212 Greatest Support 55 | 20 20 22 40 40 55 Greatest Overweight (x) 5 | . . . 5 5 5 Average Overweight (x) 1 | . . . 1 5 2 Largest Inventory Capacity 35 | 8 8 8 35 35 35 Average Capacity 22 | 8 8 8 26 35 15 Most Carried 17 | 6 5 8 15 15 17 Average Carried 10 | 5 4 7 10 15 8 Final Capacity 35 | 8 8 8 35 35 5 Final Carried 15 | 4 5 8 15 15 5 Class Distribution -------------------- 54% | Hauler-Mutant 45% | Mutant Dominant Class ---------------- Mutant | -10/Materials Mutant | -10/Mines Hauler-Mutant | -10/Exiles Hauler-Mutant | -9/Mines Mutant | -8/Materials Resources | -11 -10 -10 -10 -9 -8 ----------- Run | Scr Mat Min Exi Min Mat Matter Collected 404 | 177 . 67 . 80 80 Remotely . | . . . . . . Salvage Created 103 | . . 45 . . 58 Parts 4 | . . 3 . . 1 Haulers Intercepted . | . . . . . . Recyclers Shooed . | . . . . . . Parts Field Recycled . | . . . . . . Retrieved Matter . | . . . . . . Parts Self-Destructed . | . . . . . . Prevented . | . . . . . . Kills | -11 -10 -10 -10 -9 -8 ------- Run | Scr Mat Min Exi Min Mat Combat Hostiles Destroyed 2 | . . 1 . . 1 Guns 2 | . . 1 . . 1 Classes Destroyed 1 | . . 1 . . . Grunt 2 | . . 1 . . 1 Best Kill Streak 1 | . . 1 . . 1 Combat Bots Only 1 | . . 1 . . 1 Max Kills in Single Turn 1 | . . 1 . . 1 Gunslinging . | . . . . . . Exploded . | . . . . . . Melee . | . . . . . . Uniques/NPCs Destroyed . | . . . . . . Combat | -11 -10 -10 -10 -9 -8 -------- Run | Scr Mat Min Exi Min Mat Damage Taken 164 | . . 12 . . 152 Core . | . . . . . . Absorbed by Shields . | . . . . . . Core Remaining (%) 100 | 100 . . . 100 . Volleys Fired 4 | . . 1 . . 3 Largest 2 | . . 2 . . 2 Hottest 77 | . . 65 . . 77 Shots Fired 8 | . . 2 . . 6 Gun 5 | . . 2 . . 3 Cannon 3 | . . . . . 3 Launcher . | . . . . . . Special . | . . . . . . Kinetic 7 | . . 1 . . 6 Thermal . | . . . . . . Explosive . | . . . . . . Electromagnetic 1 | . . 1 . . . Robot Hit Streak 4 | . . 1 . . 4 Robot Miss Streak 2 | . . 1 . . 2 Penetration Max . | . . . . . . Secondary Targets . | . . . . . . Shots Hit Robots 4 | . . 1 . . 3 Core Hits 3 | . . 1 . 1 1 Critical Kills . | . . . . . . Critical Parts Destroyed 1 | . . . . . 1 Critical Strikes 1 | . . . . . 1 Destroy 1 | . . . . . 1 Melee Attacks . | . . . . . . Impact . | . . . . . . Slashing . | . . . . . . Piercing . | . . . . . . Sneak Attacks . | . . . . . . Combat Hostiles . | . . . . . . Follow-up Attacks . | . . . . . . Damage Inflicted 97 | . . 19 . 3 75 Guns 66 | . . 19 . . 47 Cannons 28 | . . . . . 28 Explosions . | . . . . . . Melee . | . . . . . . Ramming 3 | . . . . 3 . Kinetic 94 | . . 19 . . 75 Thermal . | . . . . . . Explosive . | . . . . . . Electromagnetic . | . . . . . . Impact . | . . . . . . Slashing . | . . . . . . Piercing . | . . . . . . Highest Corruption 2 | . . . . . 2 Average Corruption 1 | . . . . . 1 Corruption Purged . | . . . . . . Corruption Blocked . | . . . . . . Effects 2 | . . . . . 2 Data Loss (minor) 1 | . . . . . 1 Alerts 1 | . . . . . 1 Overload Shots . | . . . . . . Overflow Damage . | . . . . . . Projectiles . | . . . . . . Explosions . | . . . . . . Melee . | . . . . . . Knockbacks 1 | . . . . . 1 Impact . | . . . . . . Kinetic 1 | . . . . . 1 Secondary . | . . . . . . Self-Inflicted Damage . | . . . . . . Shots . | . . . . . . Rammed 1 | . . . . 1 . Targets Rammed 1 | . . . . 1 . Kicked . | . . . . . . Crushed . | . . . . . . Highest Temperature 28 | . . 28 . . . Average Temperature 17 | . . 17 . . . Received Heat Transfer 9 | . . 9 . . . Siege Activations . | . . . . . . Robots Corrupted . | . . . . . . Combat Hostiles . | . . . . . . Parts Fried . | . . . . . . Impact Corruptions . | . . . . . . Robots Melted . | . . . . . . Combat Hostiles . | . . . . . . Parts Melted . | . . . . . . Heat Transferred . | . . . . . . Parts Sabotaged . | . . . . . . Parts Stolen . | . . . . . . Parts Stripped . | . . . . . . Power Chain Reactions . | . . . . . . Missiles Intercepted . | . . . . . . Alert | -11 -10 -10 -10 -9 -8 ------- Run | Scr Mat Min Exi Min Mat Peak Influence 142 | . . 53 . . 142 Initial . | . . . . . . Average 25 | . . 15 . . 67 Maximum Alert Level . | . . . . . . Low Security (%) 100 | 100 100 100 . 100 100 Level 1 . | . . . . . . Level 2 . | . . . . . . Level 3 . | . . . . . . Level 4 . | . . . . . . Level 5 . | . . . . . . High Security . | . . . . . . Max Security . | . . . . . . Squads Dispatched 2 | . . 1 . . 1 Investigation 1 | . . 1 . . . Extermination . | . . . . . . Reinforcement . | . . . . . . Assault . | . . . . . . Garrison 1 | . . . . . 1 Intercept . | . . . . . . Searches Triggered . | . . . . . . Construction Impeded . | . . . . . . Haulers Reinforced . | . . . . . . Active Scanning Responses . | . . . . . . Cargo Convoy Interrupts . | . . . . . . Stealth | -11 -10 -10 -10 -9 -8 --------- Run | Scr Mat Min Exi Min Mat Distress Signals 1 | . . . . . 1 Communications Jammed . | . . . . . . Distress Signals . | . . . . . . Times Spotted 13 | . . 2 . . 11 Peak Tracking Total 4 | . . 2 . . 4 Tactical Retreats . | . . . . . . Traps | -11 -10 -10 -10 -9 -8 ------- Run | Scr Mat Min Exi Min Mat Traps Triggered 2 | . . . . . 2 Indirectly . | . . . . . . Trap Hack Attempts . | . . . . . . Triggered . | . . . . . . Disarmed . | . . . . . . Reprogrammed . | . . . . . . Reused . | . . . . . . Traps Extracted . | . . . . . . Installed . | . . . . . . Triggered . | . . . . . . Machines | -11 -10 -10 -10 -9 -8 ---------- Run | Scr Mat Min Exi Min Mat Machines Disabled 1 | . . . . . 1 Max in Single Turn . | . . . . . . Machines Sabotaged . | . . . . . . Garrisons Compromised . | . . . . . . Overloaded Fab Kills . | . . . . . . Hacking | -11 -10 -10 -10 -9 -8 --------- Run | Scr Mat Min Exi Min Mat Machines Accessed 4 | . 2 1 . . 1 Terminals 3 | . 2 . . . 1 Fabricators . | . . . . . . Repair Stations . | . . . . . . Recycling Units . | . . . . . . Scanalyzers . | . . . . . . Garrison Access . | . . . . . . Total Hacks 7 | . 3 1 . . 3 Successful 3 | . 1 1 . . 1 Failed 4 | . 2 . . . 2 Catastrophic . | . . . . . . Database Lockouts . | . . . . . . Manual 7 | . 3 . 1 . 3 Terminals 6 | . 3 . . . 3 Fabricators . | . . . . . . Repair Stations . | . . . . . . Recycling Units . | . . . . . . Scanalyzers . | . . . . . . Garrison Access . | . . . . . . Terminal Hacks 1 | . . 1 . . . Open Door 1 | . . 1 . . . Fabricator Hacks . | . . . . . . Repair Station Hacks . | . . . . . . Recycling Unit Hacks . | . . . . . . Scanalyzer . | . . . . . . Garrison Access Hacks . | . . . . . . Unauthorized Hacks 2 | . 1 . . . 1 Terminals 2 | . 1 . . . 1 Botnet 2 | . 1 . . . 1 Fabricators . | . . . . . . Repair Stations . | . . . . . . Recycling Units . | . . . . . . Scanalyzers . | . . . . . . Garrison Access . | . . . . . . Data Cores Recovered . | . . . . . . Used . | . . . . . . Hacking Detections 2 | . 1 . . . 1 Full Trace Events . | . . . . . . Feedback Events . | . . . . . . Feedback Blocked . | . . . . . . Robot Schematics Acquired . | . . . . . . Robots Built . | . . . . . . Authchips . | . . . . . . Time . | . . . . . . Total Robot Build Rating . | . . . . . . Part Schematics Acquired . | . . . . . . Parts Built . | . . . . . . Authchips . | . . . . . . Time . | . . . . . . Total Part Build Rating . | . . . . . . Parts Repaired . | . . . . . . Time . | . . . . . . Parts Recycled . | . . . . . . Recycled Matter . | . . . . . . Retrieved Matter . | . . . . . . Retrieved Components . | . . . . . . Parts Scanalyzed . | . . . . . . Part Schematics Acquired . | . . . . . . Parts Damaged . | . . . . . . Bothacking | -11 -10 -10 -10 -9 -8 ------------ Run | Scr Mat Min Exi Min Mat Used RIF Installer . | . . . . . . Robots Hacked . | . . . . . . Non-combat . | . . . . . . Combat . | . . . . . . Robot Hacks Applied . | . . . . . . Relay Couplers Released . | . . . . . . Fabnet Peak Effective % . | . . . . . . Robots Rewired . | . . . . . . Allies Hacked . | . . . . . . Hacks Repelled . | . . . . . . Allies | -11 -10 -10 -10 -9 -8 -------- Run | Scr Mat Min Exi Min Mat Total Allies 6 | . . 3 . 3 . Largest Group 6 | . . 3 3 6 6 Highest-Rated Group 112 | . . 40 40 112 112 Highest-Rated Ally 31 | . . 16 16 31 31 Total Orders . | . . . . . . Ally Attacks 60 | . . 4 . . 56 Total Damage 924 | . . 45 . . 879 Kills 14 | . . 1 . . 13 Allies Corrupted 1 | . . . . . 1 Allies Melted . | . . . . . . Intel | -11 -10 -10 -10 -9 -8 ------- Run | Scr Mat Min Exi Min Mat Robot Analysis Total . | . . . . . . Derelict Logs Recovered 3 | . . 3 . . . Drone Launches 30 | . . . . . 30 Drone Recoveries . | . . . . . . Exploration | -11 -10 -10 -10 -9 -8 ------------- Run | Scr Mat Min Exi Min Mat Turns Passed 3363 | 3 120 569 1499 590 582 Spaces Moved 1318 | 1 100 469 511 105 132 Core . | . . . . . . Treads 631 | . . . 394 105 132 Legs 687 | 1 100 469 117 . . Wheels . | . . . . . . Hover . | . . . . . . Flight . | . . . . . . Fastest Speed 105 | 120 120 105 105 560 160 Average Speed 238 | 120 120 109 289 560 338 Slowest Speed 560 | 120 120 120 560 560 560 Overloaded Moves . | . . . . . . Propulsion Burnouts . | . . . . . . Robots Hopped . | . . . . . . Cave-ins Triggered . | . . . . . . Exploration Rate (%) 38 | 2 20 90 73 25 20 Regions Visited 5 Branch Regions 3 Pre-discovered Areas . | . . . . . . Known Exits Taken 1 | . . 1 . . . Unknown Exits Taken 4 | 1 1 . 1 1 . Scrap Searched 2 | . . 1 . 1 . Spaces Dug . | . . . . . . Terrain Destroyed 1 | . . . . . 1 Melee . | . . . . . . Projectile 1 | . . . . . 1 AOE . | . . . . . . Terrain Rammed . | . . . . . . Walls Destroyed . | . . . . . . Machines Disabled . | . . . . . . Actions | -11 -10 -10 -10 -9 -8 --------- Run | Scr Mat Min Exi Min Mat Total 1528 | 3 100 525 533 106 261 Wait 155 | . . 42 2 . 111 Move 1313 | . 99 468 510 104 132 Hop . | . . . . . . Pick Up 19 | . 1 7 5 . 6 Fast Attach 9 | . . 1 5 . 3 Attach . | . . . . . . Detach 2 | . . . 2 . . Swap 9 | 1 . 2 3 1 2 Drop 16 | 2 . 4 6 . 4 Fire 4 | . . 1 . . 3 Melee . | . . . . . . Ram . | . . . . . . Kick . | . . . . . . Crush 1 | . . . . 1 . Escape Stasis . | . . . . . . Rewire . | . . . . . . Trap . | . . . . . . Miscellaneous . | . . . . . . Route ------- -11/Scrapyard -10/Materials -10/Mines (discovered 3 exits: [*Mat x2] / *Exi) -10/Exiles -9/Mines -8/Materials (discovered 1 exit: Sto) History --------- Turn | Location | Event 4 | -11/Scrapyard | Discovered new exit (range 0) 4 | -11/Scrapyard | Entered Materials 92 | -10/Materials | Discovered new exit (range 14) 124 | -10/Materials | Entered Mines 169 | -10/Mines | Learned 4 Materials zone layouts 184 | -10/Mines | Met a Derelict bent on vengeance 274 | -10/Mines | Identified exit to Exiles 279 | -10/Mines | Met a Derelict shopkeep closing up shop 327 | -10/Mines | Build established: Mutant 494 | -10/Mines | Discovered new exit (range 7) 506 | -10/Mines | Assisted by bots powering up and referring to "LRC-V3" 553 | -10/Mines | A weapon hastily lodged in a ceiling crevice suddenly fell to the ground 644 | -10/Mines | Discovered new exit (range 12) 678 | -10/Mines | Deemed a non-threat by the Exiles lab entrance 693 | -10/Mines | Entered Exiles 693 | -10/Exiles | Accompanied by 3 allies 719 | -10/Exiles | Met 8R-AWN 738 | -10/Exiles | Met EX-HEX 771 | -10/Exiles | Met EX-BIN 784 | -10/Exiles | Aligned with FarCom system 785 | -10/Exiles | Given EX-Vault access code 809 | -10/Exiles | Opened EX-Vault 823 | -10/Exiles | Found Prototype Energy Cannon 823 | -10/Exiles | Identified Gui. Plasma Cannon 833 | -10/Exiles | Found Prototype Device 833 | -10/Exiles | Identified PSU Rigger 870 | -10/Exiles | Warned to stay clear of 0b10 Research branches 992 | -10/Exiles | Met EX-DEC 1476 | -10/Exiles | Build established: Hauler-Mutant 1656 | -10/Exiles | Found Prototype Device 2140 | -10/Exiles | Discovered new exit (range 10) 2192 | -10/Exiles | Stole three prototypes: PSU Rigger, Gui. Plasma Cannon, Army-in-a-Box 2192 | -10/Exiles | Entered Mines 2192 | -9/Mines | Accompanied by 3 allies 2737 | -9/Mines | Discovered new exit (range 9) 2740 | -9/Mines | Received a Mining Laser from a helpful Derelict 2782 | -9/Mines | Entered Materials 2782 | -8/Materials | Accompanied by 6 allies 2782 | -8/Materials | Evolved 4 slots: Utility x4 2783 | -8/Materials | Identified exit to Storage 2787 | -8/Materials | Led the pair of lost Derelicts to an unsafe place 2992 | -8/Materials | Identified Army-in-a-Box 3245 | -8/Materials | Garrison activated, responded to threat 3290 | -8/Materials | Build established: Mutant 3364 | -8/Materials | Self-destructed Last Messages --------------- U-05 Engineer builds a Wall. U-05 Engineer forms the Earth. U-05 Engineer lays Concrete. U-05 Engineer builds a Wall. U-05 Engineer lays Concrete. U-05 Engineer forms the Earth. U-05 Engineer builds a Wall. K-01 Serf collects debris. Destroyed Imp. Hover Unit. Destroyed Lgt. Deuterium Engine. U-05 Engineer builds a Wall. U-05 Engineer lays Concrete. K-01 Serf collects debris. U-05 Engineer lays Concrete. U-05 Engineer builds a Wall. U-05 Engineer lays Concrete. K-01 Serf collects debris. U-05 Engineer builds a Wall. U-05 Engineer lays Concrete. K-01 Serf collects debris. Map ----- +----------------------------------------------------+ | ???????????????????????# !! [ #???? | | ???????????????????????# % % = [*!== #???? | | ????????????????# % % %!* #???? | | ????????????????# % %#######+##### ####???? | | ????????????????# """ ?????# ## #??????? | | ????????????????# """ ??????# == ## #??????? | | ????????????????# ? """??T#???#] = ## #??????? | | ????????????????? ??? ???"#???# == ## #??????? | | ????????????????? ??? ????##???# ## #??????? | | ????????????????# ?? ?????#????# ! ## #??????? | | ????????????????# #????????###??#! ## #??????? | | ????????????????# #???????? #??####+### #??????? | | ????????????????# #???????? #?????# #?# #??????? | | ????????????????# #???????? #?????# #?# #??????? | | ????????????????# #???????? #???### #?# #??????? | | ????????????????# #????????" #??##Y##### #??????? | | ?????????????#### ##???????" #??# # #??????? | | ?????????????# "#???????" #??# """ # #??????? | | ??# ########" = #??????? #??# """ # #??????? | | ??# [%% #???????###??# """ # #??????? | | ??# ########"#%=*#????????????# # #??????? | | ?????????????# #[ ######????????# # #??????? | | ?????????????###= #"""####?????# # ######## | | ???????????????# #"G"#######??# "" # # | | ???????????????# u#" "####n##### """ # # """ | | ???????????????# ^ nnn@nnn # S" # w# [ """ | | ??????????????## nnnnnn + """ # # """ | | ??????????????#" nnnnnnn k # """u/ + | | ??????????????#T nnnnn # n # # """ | | ??????????????#" ######## # """ | | ??????????????## != a %=%* = # """ | | ????????# ## *%= *% % %# | | ??####### ## =########+#######+#### ######## | | ?? ## ## ### # # | | ?? ## s ## #?# """ # "T" # # """ | | ?? ## ## ### """ # ! [#! # """ | | ?? ####s### ## """ # #% # """ | | ?? ## # """ += + | | ?? ## "" # """ # # """ | | ?? ## """# """ # # """ | | ??##+########## ## S"# """ # # """ | | ?? #?????######## ! # # + | | ?? """ #????????????################### ######## | | ?? """ #??????????????????????????????# #??????? | | ?? """ #??????????????????????????????# #??????? | | ?? """ #??????????????????????????????####??????? | | ?? #????????????????????????????????????????? | | ??#######????????????????????????????????????????? | | ?????????????????????????????????????????????????? | | ?????????????????????????????????????????????????? | +----------------------------------------------------+ Best States ------------- Heat Dissipation 31 Energy Generation 10 Energy Capacity 250 Matter Stores 300 Matter Capacity 300 Sight Range 16 Terrain Scan Density 10 Additional Mass Support 9 Armor Coverage 150 Resistance: KI 20 Resistance: TH 20 Resistance: EX 20 Resistance: EM 20 Resistance: I 20 Resistance: S 20 Resistance: P 20 Evasion (%) 55 Recoil Reduction 2 Offensive Hacking 10 Item Schematics ----------------- None Robot Schematics ------------------ None Fabricated ------------ Nothing Alien Tech Used ----------------- None Achievements -------------- None Challenges ------------ None Game ------ Seed CompactThunderModule Manual? 0 Play Time 00:14:52 Cumulative 62.1 hours Start 2022.04.13 @ 07:00:12 End 2022.04.14 @ 21:52:22 Sessions 5 Manual Loads 0 Difficulty Adventurer Special Mode None Game No. 103 Rogue 40 Adventurer 63 Explorer 0 Win Type - Total 4 Types 3/0/0/1/0/0/0/0/0 Lore% 46 Gallery% 55 Achievement% 54 Wizard Run 0 Options --------- ASCII 0 Keyboard 0 Movement Mouse Keybinds 0 Fullscreen 1 Font 20/SmallcapsGlow Map View 66x50 Tactical HUD 0 Map Filters NONE Filters NONE Steam 1 RUN: c6eb854f-c69e-4417-b57c-86ac947ffe69